bitfinex/quotes_BTCUSD_20230113
["timestamp","ask_amount","ask_price","bid_price","bid_amount"]
[1673626396760,0.41985994,19153.0,19149.0,3.49186965]
[1673626397003,0.4501708,19152.0,19150.0,1.04466711]
[1673626397244,0.52584866,19151.0,19150.0,1.04466711]
[1673626397493,0.7361536,19151.0,19150.0,1.86686011]
[1673626397753,0.21030494,19151.0,19150.0,1.04466711]
[1673626397993,0.925272,19151.0,19150.0,1.04466711]
[1673626398233,1.13557694,19151.0,19148.0,1.04466711]
[1673626398480,0.325272,19150.0,19149.0,1.04466711]
[1673626398724,0.576972,19150.0,19147.0,0.00019]
[1673626398972,0.153,19148.0,19147.0,0.00019]
[1673626399216,0.614332,19148.0,19147.0,0.00019]
[1673626399460,0.614332,19148.0,19143.0,3.124884]
[1673626399696,0.31030494,19147.0,19143.0,0.522384]
[1673626399955,0.21030494,19147.0,19143.0,0.522384]
[1673626400442,0.44455225,19146.0,19143.0,0.522384]
[1673626400689,0.65485719,19146.0,19143.0,0.522384]
[1673626400938,0.44455225,19146.0,19144.0,0.3]
[1673626401179,0.44455225,19146.0,19144.0,0.822345]
[1673626401423,0.153,19148.0,19144.0,1.40021258]
[1673626401676,0.44958394,19148.0,19145.0,0.1085]
[1673626401922,0.44958394,19148.0,19146.0,1.044604]
[1673626402165,0.44958394,19148.0,19147.0,0.3]
[1673626402413,0.46186933,19150.0,19147.0,1.35305]
[1673626402659,0.46186933,19150.0,19148.0,0.26962]
[1673626402900,1.72103742,19151.0,19149.0,1.86666]
[1673626403163,1.72103742,19151.0,19150.0,0.0085]
[1673626403404,0.00032004,19150.0,19149.0,0.82222]
[1673626403648,0.00032004,19150.0,19149.0,0.82030026]
[1673626403941,0.43801461,19150.0,19149.0,1.34060052]
[1673626404415,0.00032004,19150.0,19149.0,1.04444]
[1673626404663,0.13638004,19150.0,19149.0,0.0821037]
[1673626404921,0.53572574,19149.0,19146.0,0.522279]
[1673626405184,0.72355532,19149.0,19146.0,0.522279]
[1673626405417,0.21030494,19149.0,19147.0,0.0085]
[1673626405661,0.50262125,19148.0,19147.0,0.0085]
[1673626406376,0.50262125,19148.0,19146.0,0.604279]
[1673626406635,0.50262125,19148.0,19146.0,0.522279]
[1673626407141,0.50262125,19148.0,19146.0,1.044581]
[1673626407615,0.50262125,19148.0,19145.0,0.3]
[1673626407616,0.21030494,19147.0,19144.0,1.044691]
[1673626407857,0.68777694,19146.0,19143.0,0.522383]
[1673626408113,0.325272,19145.0,19143.0,0.522383]
[1673626408349,0.70109817,19145.0,19143.0,0.522383]
[1673626408602,0.70109817,19145.0,19144.0,0.082]
[1673626408603,0.21030494,19145.0,19144.0,0.082]
[1673626408854,1.000604,19145.0,19141.0,0.54211021]
[1673626409112,0.53557694,19144.0,19141.0,0.54211021]
[1673626409353,0.21030494,19144.0,19141.0,0.54211021]
[1673626409616,0.325272,19143.0,19141.0,0.54211021]
[1673626409842,1.14449831,19145.0,19141.0,0.54211021]
[1673626409843,1.20568178,19145.0,19141.0,0.54211021]
[1673626410099,0.53034978,19145.0,19141.0,1.61478024]
[1673626410599,0.53034978,19145.0,19142.0,0.4]
[1673626410895,0.01,19144.0,19143.0,0.522384]
[1673626411128,0.52034978,19145.0,19143.0,1.99575951]
[1673626411371,0.44436178,19145.0,19144.0,0.3]
[1673626411616,0.44336178,19145.0,19144.0,0.822356]
[1673626411876,0.44336178,19145.0,19144.0,0.3]
[1673626412152,0.1,19146.0,19144.0,0.3]
[1673626412381,0.326272,19145.0,19144.0,0.44]
[1673626412643,0.326272,19145.0,19144.0,0.3]
[1673626412644,0.325272,19145.0,19144.0,0.3]
[1673626412895,0.1,19146.0,19144.0,0.3]
[1673626413137,0.1,19146.0,19144.0,0.29621202]
[1673626413387,0.37979688,19144.0,19143.0,0.52187718]
[1673626414606,0.37979688,19144.0,19142.0,0.82239]
[1673626414860,0.73266094,19144.0,19141.0,0.0038803]
[1673626415104,0.98666094,19144.0,19143.0,0.14]
[1673626415349,0.775356,19144.0,19141.0,0.0038803]
[1673626415593,0.98566094,19144.0,19141.0,0.0038803]
[1673626415825,0.23606,19143.0,19142.0,0.0769403]
[1673626416073,0.63786263,19143.0,19142.0,0.0769403]
[1673626416314,0.23606,19143.0,19142.0,0.0769403]
[1673626416559,1.586028,19143.0,19142.0,0.0769403]
[1673626416804,1.9113,19143.0,19141.0,0.0038803]
[1673626417054,0.478272,19142.0,19141.0,0.0038803]
[1673626417297,1.523094,19142.0,19141.0,0.0038803]
[1673626417537,1.623094,19142.0,19141.0,0.0038803]
[1673626417800,0.1,19141.0,19138.0,2.60269]
[1673626418044,1.370204,19140.0,19138.0,0.00019]
[1673626418298,1.044932,19140.0,19138.0,0.00019]
[1673626418560,0.23606,19139.0,19138.0,0.00019]
[1673626418799,0.658553,19139.0,19136.0,1.04493762]
[1673626419062,0.39209833,19139.0,19136.0,1.54478199]
[1673626419311,0.39209833,19139.0,19137.0,1.04493762]
[1673626420062,0.39209833,19139.0,19138.0,0.089]
[1673626420319,0.39209833,19139.0,19138.0,1.34493762]
[1673626420552,0.1,19141.0,19138.0,1.04493762]
[1673626420801,0.675493,19139.0,19137.0,0.089]
[1673626421068,0.325272,19138.0,19137.0,0.089]
[1673626421315,0.81435923,19138.0,19137.0,0.089]
[1673626421570,0.62252,19138.0,19137.0,1.02918627]
[1673626421811,1.14504,19138.0,19135.0,0.01969421]
[1673626422094,1.81928771,19138.0,19135.0,0.01969421]
[1673626422347,0.93035135,19138.0,19135.0,0.01969421]
[1673626422591,1.14065629,19138.0,19135.0,0.01969421]
[1673626422857,1.41734494,19138.0,19137.0,0.089]
[1673626423089,0.40219687,19137.0,19135.0,0.01632884]
[1673626423353,0.62256,19137.0,19135.0,0.10532884]
[1673626423603,1.145107,19137.0,19135.0,0.10532884]
[1673626423857,1.045107,19137.0,19135.0,0.01632884]
[1673626424115,0.522544,19138.0,19135.0,0.01632884]
[1673626424353,0.45144392,19136.0,19135.0,0.01632884]
[1673626424599,0.45144392,19136.0,19135.0,0.10532884]
[1673626424850,0.45144392,19136.0,19135.0,0.53893084]
[1673626425865,0.774737,19138.0,19135.0,0.01632884]
[1673626426124,0.35208793,19136.0,19135.0,0.01632884]
[1673626426363,0.47096343,19136.0,19135.0,0.10532884]
[1673626426865,0.47096343,19136.0,19135.0,0.62793084]
[1673626427618,0.009,19136.0,19135.0,1.45053284]
[1673626427876,0.009,19136.0,19135.0,2.22815508]
[1673626428134,0.009,19136.0,19135.0,2.75925708]
[1673626429152,0.009,19136.0,19135.0,2.06884891]
[1673626429642,0.009,19136.0,19135.0,2.75267056]
[1673626431438,0.009,19136.0,19135.0,2.06884891]
[1673626431685,0.009,19136.0,19135.0,3.58309101]
[1673626431942,0.009,19136.0,19135.0,4.99809255]
[1673626432236,0.40214521,19141.0,19136.0,0.1]
[1673626432445,0.40214521,19141.0,19137.0,2.15077931]
[1673626432705,0.40214521,19141.0,19138.0,0.3]
[1673626432957,0.00416243,19142.0,19139.0,1.053486]
[1673626433218,0.00416243,19142.0,19140.0,0.4]
[1673626433219,0.39896697,19142.0,19140.0,0.4]
[1673626433526,0.39896697,19142.0,19141.0,0.522438]
[1673626433734,0.00416243,19142.0,19141.0,0.522438]
[1673626433980,0.00416243,19142.0,19140.0,0.82234263]
[1673626433981,0.56465767,19142.0,19140.0,0.82234263]
[1673626434247,0.56465767,19142.0,19139.0,1.19186624]
[1673626434467,0.56465767,19142.0,19139.0,1.05486624]
[1673626434712,0.56465767,19142.0,19141.0,0.12179176]
[1673626434965,0.42859767,19142.0,19140.0,1.11968193]
[1673626435212,0.00416243,19142.0,19141.0,0.4]
[1673626435462,0.00416243,19142.0,19141.0,1.453376]
[1673626435725,0.43679066,19142.0,19141.0,1.053376]
[1673626435980,0.43679066,19142.0,19141.0,1.044876]
[1673626436227,0.43779066,19142.0,19141.0,1.344876]
[1673626436472,0.43679066,19142.0,19141.0,1.044876]
[1673626436735,0.43679066,19142.0,19141.0,1.344876]
[1673626436968,0.43779066,19142.0,19141.0,1.474876]
[1673626437226,0.43779066,19142.0,19141.0,1.574876]
[1673626437490,0.00516243,19142.0,19141.0,2.20302771]
[1673626437739,0.00516243,19142.0,19141.0,2.10302771]
[1673626439229,0.00516243,19142.0,19141.0,2.20302771]
[1673626440223,0.00516243,19142.0,19141.0,2.20272771]
[1673626440718,0.24343552,19144.0,19142.0,0.1]
[1673626440969,0.24624086,19145.0,19143.0,1.567152]
[1673626441216,0.24624086,19145.0,19144.0,0.3]
[1673626441730,0.24624086,19145.0,19144.0,1.044712]
[1673626441991,0.00416243,19147.0,19144.0,0.22191562]
[1673626442236,0.675329,19145.0,19144.0,0.22191562]
[1673626442482,1.000601,19145.0,19141.0,0.522423]
[1673626442729,0.325272,19144.0,19141.0,1.044833]
[1673626442977,0.21030494,19144.0,19141.0,1.044833]
[1673626443227,0.52233,19145.0,19141.0,1.57061363]
[1673626443520,0.21906606,19146.0,19143.0,0.65568909]
[1673626443755,0.21906606,19146.0,19143.0,1.70043309]
[1673626444011,0.21906606,19146.0,19144.0,0.3]
[1673626444261,0.21906606,19146.0,19144.0,1.344692]
[1673626444504,0.21906606,19146.0,19144.0,1.044692]
[1673626444996,0.31906606,19146.0,19144.0,1.044692]
[1673626446719,0.1,19146.0,19145.0,0.3]
[1673626446968,0.1,19146.0,19145.0,1.97859625]
[1673626448241,0.1,19146.0,19145.0,2.07859625]
[1673626449999,0.1,19146.0,19145.0,1.97859625]
[1673626450503,0.1,19146.0,19145.0,1.353158]
[1673626451093,0.1,19146.0,19145.0,1.453158]
[1673626451774,0.1,19146.0,19145.0,1.353158]
[1673626452268,0.1,19146.0,19145.0,1.89012696]
[1673626452759,0.1,19146.0,19145.0,2.41245596]
[1673626453787,0.1,19146.0,19145.0,1.875487]
[1673626454035,0.37206832,19146.0,19145.0,1.044658]
[1673626454277,0.1,19146.0,19144.0,0.522341]
[1673626454535,0.1,19146.0,19144.0,1.044677]
[1673626454791,0.1,19146.0,19144.0,0.52234]
[1673626455036,0.23193118,19145.0,19144.0,0.52234]
[1673626455559,0.22151494,19145.0,19144.0,0.52234]
[1673626456298,0.22151494,19145.0,19144.0,0.82234]
[1673626456542,0.22151494,19145.0,19144.0,0.52234]
[1673626456814,0.26685967,19145.0,19143.0,0.522365]
[1673626457046,0.26685967,19145.0,19143.0,1.044731]
[1673626458036,0.26685967,19145.0,19144.0,0.3]
[1673626458281,0.26685967,19145.0,19144.0,0.822356]
[1673626458541,0.26685967,19145.0,19144.0,0.80696417]
[1673626458786,0.26685967,19145.0,19144.0,0.522356]
[1673626459342,0.622303,19146.0,19143.0,0.522362]
[1673626459582,0.522329,19145.0,19141.0,1.044844]
[1673626459849,0.63557694,19144.0,19141.0,1.044844]
[1673626460111,0.63557694,19144.0,19141.0,0.522425]
[1673626460112,0.325272,19143.0,19141.0,0.522425]
[1673626460367,0.21030494,19143.0,19140.0,0.522465]
[1673626460648,0.49300804,19143.0,19140.0,0.522465]
[1673626461167,0.774973,19144.0,19140.0,0.522465]
[1673626461392,0.22654584,19143.0,19140.0,1.73980948]
[1673626461645,0.22654584,19143.0,19141.0,0.3]
[1673626461896,0.22654584,19143.0,19141.0,1.344849]
[1673626462131,0.22654584,19143.0,19142.0,1.04472885]
[1673626462375,0.22654584,19143.0,19142.0,1.86713985]
[1673626462620,0.22654584,19143.0,19142.0,1.04472885]
[1673626462868,0.1,19143.0,19142.0,1.04472885]
[1673626463360,0.67536,19144.0,19141.0,1.56716685]
[1673626463601,0.67536,19144.0,19142.0,1.04472885]
[1673626463602,0.52236,19144.0,19142.0,1.04472885]
[1673626464333,0.622344,19145.0,19142.0,1.04472885]
[1673626464595,0.675358,19144.0,19142.0,1.04472885]
[1673626464850,0.629972,19143.0,19142.0,1.04472885]
[1673626465103,1.77474,19143.0,19142.0,1.04489247]
[1673626465351,1.77474,19143.0,19139.0,1.04489247]
[1673626465352,1.77467982,19143.0,19139.0,1.04489247]
[1673626465600,0.153,19141.0,19139.0,1.04489247]
[1673626465851,0.36330494,19141.0,19139.0,1.04489247]
[1673626466095,0.153,19141.0,19139.0,1.04489247]
[1673626466836,0.67544,19141.0,19139.0,1.04489247]
[1673626467084,0.1,19140.0,19139.0,1.04489247]
[1673626468092,0.46335535,19140.0,19139.0,1.04489247]
[1673626468346,0.98582135,19140.0,19139.0,1.04489247]
[1673626468591,1.21109335,19140.0,19139.0,1.04375509]
[1673626469090,0.675466,19140.0,19139.0,1.04375509]
[1673626469333,0.88246525,19140.0,19139.0,1.04375509]
[1673626469584,1.000738,19140.0,19139.0,1.04375509]
[1673626469825,1.23193855,19140.0,19139.0,1.04375509]
[1673626470322,1.000738,19140.0,19139.0,1.04375509]
[1673626470569,1.23640533,19140.0,19139.0,1.04375509]
[1673626470808,0.675466,19140.0,19139.0,1.04375509]
[1673626471056,1.197932,19140.0,19139.0,1.04375509]
[1673626471329,1.523204,19140.0,19139.0,1.04375509]
[1673626471582,1.197932,19140.0,19139.0,1.04375509]
[1673626471823,1.75990329,19140.0,19139.0,1.04375509]
[1673626472082,1.523204,19140.0,19139.0,1.04375509]
[1673626472332,1.44294528,19140.0,19139.0,1.04375509]
[1673626472587,0.675466,19140.0,19139.0,1.04375509]
[1673626472851,1.23421934,19140.0,19139.0,1.04375509]
[1673626473105,1.80044982,19140.0,19139.0,1.04375509]
[1673626473349,1.76549548,19140.0,19139.0,1.04375509]
[1673626473597,1.44022348,19140.0,19139.0,1.04375509]
[1673626473842,1.623204,19140.0,19139.0,1.04375509]
[1673626474346,1.297932,19140.0,19139.0,1.04375509]
[1673626474604,2.14567,19140.0,19139.0,1.04375509]
[1673626475097,1.820398,19140.0,19139.0,1.04375509]
[1673626475352,2.14567,19140.0,19139.0,1.04375509]
[1673626476092,2.04567,19140.0,19139.0,1.04375509]
[1673626476336,0.74999553,19140.0,19139.0,1.04375509]
[1673626476582,0.22752953,19140.0,19139.0,1.04375509]
[1673626477570,0.79830881,19142.0,19139.0,2.74683753]
[1673626477829,0.253638,19141.0,19139.0,1.70308244]
[1673626478077,0.26104784,19140.0,19139.0,0.522493]
[1673626479332,0.26104784,19140.0,19138.0,1.72150532]
[1673626479576,0.22806096,19142.0,19139.0,1.96743063]
[1673626480069,0.28834701,19141.0,19139.0,1.344986]
[1673626480313,0.28834701,19141.0,19138.0,0.65042322]
[1673626480555,0.28834701,19141.0,19139.0,0.522492]
[1673626481326,0.28834701,19141.0,19139.0,1.65943635]
[1673626482378,0.28834701,19141.0,19140.0,0.3]
[1673626482622,0.28834701,19141.0,19140.0,1.344932]
[1673626482868,1.47605427,19143.0,19140.0,1.99332247]
[1673626483120,0.522372,19144.0,19140.0,1.99332247]
[1673626483378,0.26560725,19144.0,19141.0,0.1615]
[1673626483635,0.26560725,19144.0,19142.0,1.567233]
[1673626484132,0.1,19146.0,19143.0,0.1]
[1673626484377,0.3328442,19146.0,19144.0,0.522356]
[1673626484918,0.22878987,19145.0,19144.0,0.522356]
[1673626485150,0.22878987,19145.0,19144.0,1.044712]
[1673626486408,0.22878987,19145.0,19144.0,0.522356]
[1673626486655,0.1,19145.0,19142.0,0.522391]
[1673626486911,0.21030494,19144.0,19141.0,0.522418]
[1673626487655,0.21030494,19143.0,19141.0,0.522418]
[1673626487918,0.21030494,19143.0,19140.0,0.522447]
[1673626487919,0.153,19142.0,19138.0,0.54164612]
[1673626488173,0.68857694,19141.0,19138.0,0.01915012]
[1673626488420,0.53557694,19140.0,19138.0,0.01934012]
[1673626488718,1.14496,19140.0,19139.0,1.04501327]
[1673626488935,1.29796,19140.0,19139.0,1.04501327]
[1673626489190,1.87664395,19140.0,19139.0,1.04501327]
[1673626489438,1.623232,19140.0,19139.0,1.04501327]
[1673626489705,1.42378995,19140.0,19139.0,1.04501327]
[1673626490209,1.74906195,19140.0,19139.0,1.04501327]
[1673626490972,1.42378995,19140.0,19139.0,1.04501327]
[1673626491259,1.19796,19140.0,19139.0,1.04501327]
[1673626491471,1.80225197,19140.0,19139.0,1.04501327]
[1673626491730,1.90225197,19140.0,19139.0,1.04501327]
[1673626491984,1.90225197,19140.0,19139.0,0.44501327]
[1673626492500,0.27901997,19140.0,19139.0,0.44501327]
[1673626494977,0.2517,19142.0,19139.0,0.44501327]
[1673626495231,0.522466,19140.0,19139.0,0.44501327]
[1673626495473,1.622404,19140.0,19139.0,0.44501327]
[1673626495968,1.8628896,19140.0,19139.0,0.44501327]
[1673626496223,1.8806951,19140.0,19139.0,0.44501327]
[1673626496734,1.6284951,19140.0,19139.0,0.44501327]
[1673626496977,0.2582911,19140.0,19139.0,0.44501327]
[1673626498252,0.2369457,19142.0,19139.0,1.56134388]
[1673626498496,0.26455831,19141.0,19139.0,1.11633061]
[1673626499253,0.28861978,19140.0,19138.0,0.54164512]
[1673626499758,0.775429,19142.0,19138.0,1.09623866]
[1673626500023,0.2595636,19141.0,19138.0,1.09623866]
[1673626500999,0.622404,19143.0,19140.0,0.52682842]
[1673626501000,0.20446265,19143.0,19140.0,0.52682842]
[1673626501252,0.2680716,19141.0,19138.0,1.76253428]
[1673626501503,0.1,19144.0,19140.0,0.50062704]
[1673626501752,0.24478161,19142.0,19140.0,1.02309204]
[1673626501994,0.24478161,19142.0,19140.0,0.522465]
[1673626502981,0.24478161,19142.0,19140.0,1.044931]
[1673626503983,1.14466,19145.0,19140.0,1.044931]
[1673626504245,0.874923,19146.0,19141.0,0.4519]
[1673626504246,0.26265576,19143.0,19141.0,0.4519]
[1673626504486,0.2,19146.0,19142.0,1.044822]
[1673626504985,1.53755598,19146.0,19140.0,0.522444]
[1673626505281,1.53755598,19146.0,19139.0,0.522472]
[1673626505282,0.1,19144.0,19139.0,0.522472]
[1673626505533,2.10275794,19143.0,19138.0,0.01915012]
[1673626505813,0.53557694,19142.0,19138.0,0.01915012]
[1673626506056,0.53557694,19141.0,19138.0,0.01915012]
[1673626506331,0.21030494,19140.0,19138.0,0.01915012]
[1673626506580,0.516272,19139.0,19138.0,0.01915012]
[1673626507339,0.20985822,19138.0,19136.0,0.00969203]
[1673626507637,0.30015822,19138.0,19136.0,0.00969203]
[1673626507846,0.20985822,19138.0,19136.0,0.00969203]
[1673626508842,0.091,19137.0,19136.0,0.00969203]
[1673626509335,0.416272,19137.0,19136.0,0.00969203]
[1673626509588,0.25895411,19138.0,19136.0,0.00969203]
[1673626509834,0.522521,19138.0,19136.0,0.00969203]
[1673626510072,0.0906,19137.0,19136.0,0.00969203]
[1673626510313,0.28554476,19138.0,19136.0,0.00969203]
[1673626511309,0.1,19138.0,19136.0,0.00969203]
[1673626511801,0.622521,19138.0,19136.0,0.00969203]
[1673626512043,0.416272,19137.0,19136.0,0.00969203]
[1673626512287,0.091,19137.0,19136.0,0.00969203]
[1673626512525,0.34485071,19137.0,19136.0,0.00969203]
[1673626512767,0.25385071,19137.0,19136.0,1.05480518]
[1673626516035,0.77639771,19137.0,19136.0,1.05480518]
[1673626516289,0.622547,19138.0,19136.0,1.05480518]
[1673626516544,0.23120506,19138.0,19137.0,1.04511315]
[1673626517042,0.2728341,19138.0,19137.0,1.04511315]
[1673626517541,0.2121375,19138.0,19137.0,1.04511315]
[1673626519075,0.21030494,19138.0,19137.0,1.04511315]
[1673626519321,0.83282494,19138.0,19137.0,1.04511315]
[1673626519579,0.66799782,19138.0,19137.0,1.04511315]
[1673626519849,0.947792,19138.0,19137.0,1.04511315]
[1673626520133,1.14504,19138.0,19136.0,0.00969203]
[1673626520343,0.425272,19137.0,19136.0,0.00969203]
[1673626520590,1.470366,19137.0,19136.0,0.00969203]
[1673626523599,1.72988238,19137.0,19136.0,0.00969203]
[1673626523861,1.470366,19137.0,19136.0,0.00969203]
[1673626524897,1.470426,19137.0,19136.0,0.00969203]
[1673626525167,1.731975,19137.0,19136.0,0.00969203]
[1673626525717,0.38220058,19136.0,19135.0,0.00354291]
[1673626525971,3.67703522,19136.0,19135.0,0.00354291]
[1673626526243,0.6482,19135.0,19134.0,0.01889055]
[1673626526581,3.46234561,19135.0,19134.0,0.01833055]
[1673626527351,3.09464209,19135.0,19134.0,0.01833055]
[1673626527588,2.02020939,19135.0,19134.0,0.01833055]
[1673626527841,1.470476,19135.0,19134.0,0.01702955]
[1673626528093,2.54668864,19135.0,19134.0,0.01702955]
[1673626528564,1.470476,19135.0,19134.0,0.01702955]
[1673626529327,1.465476,19135.0,19134.0,0.01702955]
[1673626529799,0.1,19134.0,19132.0,0.01933052]
[1673626530042,0.325272,19133.0,19132.0,0.01933052]
[1673626530297,2.20712364,19133.0,19132.0,0.01933052]
[1673626530553,0.17567788,19131.0,19130.0,0.02020055]
[1673626530799,0.36416988,19131.0,19130.0,1.06566007]
[1673626531038,0.03889788,19131.0,19130.0,1.90718037]
[1673626531275,0.03889788,19131.0,19130.0,1.20244007]
[1673626531775,0.03889788,19131.0,19130.0,1.06547007]
[1673626532271,0.03895788,19131.0,19130.0,1.06547007]
[1673626532766,0.03895788,19131.0,19130.0,1.05871697]
[1673626533261,0.26873351,19131.0,19130.0,1.05871697]
[1673626533733,0.03895788,19131.0,19130.0,1.05871697]
[1673626533975,0.2971372,19131.0,19130.0,1.05871697]
[1673626534216,0.598172,19131.0,19130.0,1.05871697]
[1673626534710,1.120883,19131.0,19130.0,1.05871697]
[1673626534971,1.643594,19131.0,19130.0,1.05871697]
[1673626535459,2.3441861,19131.0,19130.0,0.01325745]
[1673626535708,3.08408022,19131.0,19130.0,0.01325745]
[1673626535944,2.92886301,19131.0,19130.0,0.01325745]
[1673626536182,2.92886301,19131.0,19130.0,0.00325745]
[1673626536433,0.6482,19130.0,19129.0,0.02019124]
[1673626536712,0.6482,19130.0,19129.0,0.0104189]
[1673626536713,3.37647121,19130.0,19129.0,0.0104189]
[1673626537191,4.06465968,19130.0,19129.0,0.0104189]
[1673626537442,0.02083779,19128.0,19124.0,0.02078906]
[1673626537683,0.53557694,19127.0,19125.0,1.04576032]
[1673626537923,0.325272,19126.0,19125.0,1.04595032]
[1673626538685,0.9429297,19126.0,19125.0,1.04595032]
[1673626539170,1.0429297,19126.0,19125.0,1.04595032]
[1673626539415,0.1,19125.0,19124.0,0.01078906]
[1673626539660,0.948147,19125.0,19124.0,0.01078906]
[1673626540888,0.325272,19125.0,19124.0,0.01078906]
[1673626541598,0.848147,19125.0,19124.0,0.01078906]
[1673626541855,1.371022,19125.0,19124.0,0.00578906]
[1673626542110,1.6604173,19125.0,19124.0,0.00578906]
[1673626542368,3.10703528,19125.0,19120.0,0.00019]
[1673626542613,0.5262327,19123.0,19120.0,0.00019]
[1673626542848,0.5262327,19123.0,19115.0,0.13213598]
[1673626542849,3.16213764,19122.0,19115.0,0.13213598]
[1673626543085,0.93114353,19120.0,19117.0,0.00019]
[1673626543328,0.848311,19119.0,19117.0,0.00019]
[1673626543568,0.325272,19118.0,19117.0,0.67425662]
[1673626543840,0.62976612,19121.0,19117.0,0.12697]
[1673626543841,0.1,19121.0,19117.0,0.12697]
[1673626544085,0.1,19121.0,19115.0,0.13213598]
[1673626544086,0.73332194,19120.0,19115.0,0.13213598]
[1673626544332,1.06180964,19119.0,19115.0,0.13213598]
[1673626544567,0.325272,19118.0,19115.0,0.13213598]
[1673626544807,0.325272,19117.0,19115.0,0.71315453]
[1673626545042,1.0728948,19122.0,19118.0,0.64756358]
[1673626545283,1.11258199,19122.0,19118.0,0.02110811]
[1673626545574,1.11258199,19122.0,19118.0,0.01610811]
[1673626545575,0.47844941,19121.0,19118.0,0.01610811]
[1673626545818,0.04791621,19117.0,19115.0,0.13213598]
[1673626546059,0.325272,19116.0,19115.0,0.13116986]
[1673626546564,0.04791621,19117.0,19115.0,0.13020269]
[1673626547115,0.24860073,19114.0,19112.0,0.61489283]
[1673626547359,0.53557694,19113.0,19110.0,1.44992659]
[1673626547621,0.53557694,19112.0,19110.0,0.0705]
[1673626547846,0.53557694,19111.0,19110.0,0.0705]
[1673626548092,0.325272,19111.0,19110.0,0.61427083]
[1673626548328,0.24860073,19114.0,19110.0,0.0705]
[1673626548575,0.45890567,19114.0,19110.0,0.0655]
[1673626548816,0.56043701,19113.0,19110.0,0.0655]
[1673626549052,0.948503,19112.0,19110.0,0.0655]
[1673626549298,0.325272,19111.0,19110.0,0.0655]
[1673626549537,0.325272,19111.0,19106.0,0.00019]
[1673626549538,0.1964,19109.0,19106.0,0.00019]
[1673626549775,1.05891794,19108.0,19106.0,0.00019]
[1673626550016,0.1,19106.0,19102.0,0.5993951]
[1673626550257,0.21030494,19105.0,19101.0,2.09240891]
[1673626550492,0.21030494,19104.0,19101.0,1.19650891]
[1673626550732,0.21030494,19104.0,19102.0,0.59889678]
[1673626550974,0.40684457,19101.0,19100.0,2.59802567]
[1673626551221,0.40684457,19101.0,19098.0,1.123612]
[1673626551477,0.40684457,19101.0,19097.0,0.05280372]
[1673626551478,0.21030494,19100.0,19097.0,0.05280372]
[1673626551721,0.21030494,19100.0,19094.0,0.2362]
[1673626551722,0.325272,19099.0,19094.0,0.59742042]
[1673626552034,0.63557694,19098.0,19092.0,0.62377]
[1673626552279,0.21030494,19097.0,19092.0,0.62377]
[1673626552539,0.21030494,19097.0,19092.0,0.523767]
[1673626552782,0.66740748,19097.0,19093.0,0.67393549]
[1673626553024,0.21030494,19097.0,19094.0,1.147438]
[1673626553306,0.5030148,19100.0,19094.0,2.19197908]
[1673626553557,0.40684457,19101.0,19095.0,0.58107487]
[1673626553806,0.45442816,19106.0,19098.0,0.2618]
[1673626554057,0.45442816,19106.0,19101.0,1.047048]
[1673626554058,0.4337318,19105.0,19101.0,1.047048]
[1673626554298,0.25574776,19106.0,19099.0,0.632078]
[1673626554299,0.43392705,19103.0,19100.0,0.52355]
[1673626554625,0.43392705,19103.0,19098.0,1.350912]
[1673626554626,0.47462009,19101.0,19098.0,1.350912]
[1673626554828,0.35000829,19100.0,19098.0,0.523612]
[1673626555075,0.67056745,19100.0,19098.0,0.523612]
[1673626555318,0.21030494,19100.0,19098.0,0.523612]
[1673626555568,6e-05,19099.0,19097.0,0.523629]
[1673626555808,0.03178413,19099.0,19094.0,0.523713]
[1673626556069,0.21030494,19098.0,19094.0,0.523713]
[1673626556324,0.03172413,19096.0,19090.0,0.00730294]
[1673626556571,0.53557694,19095.0,19090.0,0.00730294]
[1673626556816,0.21030494,19094.0,19090.0,0.10730294]
[1673626557073,0.82484844,19097.0,19090.0,0.10730294]
[1673626557074,0.59477844,19097.0,19090.0,1.15735264]
[1673626557319,0.21030494,19097.0,19094.0,0.05329521]
[1673626557570,6e-05,19099.0,19095.0,1.047366]
[1673626557819,6e-05,19099.0,19096.0,0.1]
[1673626558072,6e-05,19099.0,19097.0,1.047284]
[1673626558314,6e-05,19099.0,19098.0,0.3]
[1673626558559,6e-05,19099.0,19098.0,1.11760828]
[1673626558803,6e-05,19099.0,19098.0,1.74364098]
[1673626559049,0.48290822,19107.0,19099.0,0.1]
[1673626559308,0.34240866,19106.0,19101.0,1.570563]
[1673626559552,0.44944065,19104.0,19101.0,1.570563]
[1673626559800,0.40920376,19103.0,19101.0,1.570563]
[1673626560047,0.42342376,19105.0,19102.0,0.53572859]
[1673626560290,0.0002,19104.0,19103.0,0.523477]
[1673626560551,0.0002,19104.0,19102.0,0.11891113]
[1673626560798,0.0002,19104.0,19103.0,1.6731867]
[1673626561051,0.0002,19104.0,19103.0,1.146954]
[1673626561298,0.0002,19104.0,19099.0,0.523578]
[1673626561299,0.24222907,19104.0,19099.0,0.523578]
[1673626561553,0.42689741,19102.0,19099.0,0.523578]
[1673626561802,0.02442291,19104.0,19097.0,0.32749]
[1673626561803,0.24202907,19101.0,19097.0,0.523625]
[1673626562051,0.03172413,19098.0,19096.0,0.523653]
[1673626562291,0.03172413,19098.0,19095.0,0.523682]
[1673626562292,0.24202907,19098.0,19095.0,0.523682]
[1673626562537,0.24202907,19098.0,19096.0,0.523665]
[1673626562786,0.03172413,19098.0,19097.0,0.1]
[1673626563060,0.32271,19102.0,19097.0,0.1]
[1673626563061,0.03172413,19102.0,19097.0,0.1]
[1673626563321,0.03172413,19102.0,19099.0,1.047168]
[1673626563823,0.03172413,19102.0,19100.0,0.1]
[1673626564070,0.03172413,19102.0,19101.0,1.192344]
[1673626564071,0.0002,19102.0,19101.0,1.192344]
[1673626564320,0.0002,19102.0,19101.0,1.9803267]
[1673626564565,0.0002,19102.0,19101.0,1.192344]
[1673626564808,6.914e-05,19102.0,19101.0,1.28222179]
[1673626565559,0.51493821,19102.0,19098.0,0.523593]
[1673626565803,0.51493821,19102.0,19097.0,0.02452464]
[1673626565804,0.03172413,19099.0,19097.0,0.59658242]
[1673626566052,0.03172413,19099.0,19097.0,0.02452464]
[1673626566053,0.24202907,19099.0,19097.0,0.02452464]
[1673626566299,0.53557694,19098.0,19097.0,0.02452464]
[1673626566794,0.04904928,19096.0,19094.0,0.04829521]
[1673626567052,1.15927394,19095.0,19090.0,0.00730294]